[Event "Early-Titled-Tuesday-Blitz-February-27-2024"]
[Site "Chess.com"]
[Date "2024.02.27"]
[Round "9"]
[White "LimeInTheCoconut"]
[Black "Chesstiger64"]
[Result "1-0"]
[WhiteElo "2503"]
[BlackElo "2354"]
[TimeControl "180+1"]
[EndTime "9:44:23 PST"]
[Termination "LimeInTheCoconut won by checkmate"]

1. b3 {[%clk 0:03:00.9]} 1... d5 {[%clk 0:02:57.8]} 2. Bb2 {[%clk 0:03:00.6]}
2... Bg4 {[%clk 0:02:58.1]} 3. h3 {[%clk 0:02:58.1]} 3... Bh5 {[%clk 0:02:57.9]}
4. g4 {[%clk 0:02:56.1]} 4... Bg6 {[%clk 0:02:58]} 5. Bg2 {[%clk 0:02:52.5]}
5... e6 {[%clk 0:02:57.4]} 6. Nf3 {[%clk 0:02:35.8]} 6... c5 {[%clk 0:02:57.3]}
7. Ne5 {[%clk 0:02:30.3]} 7... Nc6 {[%clk 0:02:57.1]} 8. Nxg6 {[%clk 0:02:25.8]}
8... hxg6 {[%clk 0:02:58]} 9. e3 {[%clk 0:02:22]} 9... Nf6 {[%clk 0:02:56]} 10.
Qe2 {[%clk 0:02:04.8]} 10... Bd6 {[%clk 0:02:53.9]} 11. d3 {[%clk 0:01:44.9]}
11... Be5 {[%clk 0:02:53.2]} 12. c3 {[%clk 0:01:44]} 12... Qc7 {[%clk
0:02:44.7]} 13. Nd2 {[%clk 0:01:39.1]} 13... Bd6 {[%clk 0:02:38.1]} 14. O-O-O
{[%clk 0:01:34.3]} 14... b5 {[%clk 0:02:36.6]} 15. c4 {[%clk 0:01:24.5]} 15...
bxc4 {[%clk 0:02:34.3]} 16. dxc4 {[%clk 0:01:25.4]} 16... Rb8 {[%clk 0:02:33.1]}
17. cxd5 {[%clk 0:01:20.7]} 17... Nxd5 {[%clk 0:02:24.4]} 18. Nc4 {[%clk
0:01:19.5]} 18... O-O {[%clk 0:02:14.6]} 19. Bxd5 {[%clk 0:01:12.5]} 19... exd5
{[%clk 0:02:14]} 20. Rxd5 {[%clk 0:01:13.4]} 20... Be7 {[%clk 0:02:05.8]} 21.
Rhd1 {[%clk 0:00:48]} 21... Bf6 {[%clk 0:01:58.3]} 22. Bxf6 {[%clk 0:00:43.8]}
22... gxf6 {[%clk 0:01:56.5]} 23. Rd7 {[%clk 0:00:44.4]} 23... Qh2 {[%clk
0:01:47.4]} 24. Qf3 {[%clk 0:00:34.6]} 24... Ne5 {[%clk 0:01:44.4]} 25. Qxf6
{[%clk 0:00:14.6]} 25... Nxd7 {[%clk 0:01:36.8]} 26. Rxd7 {[%clk 0:00:15.5]}
26... Rb6 {[%clk 0:01:35.2]} 27. Nxb6 {[%clk 0:00:08.4]} 27... axb6 {[%clk
0:01:35.4]} 28. Qf3 {[%clk 0:00:07]} 28... Qg1+ {[%clk 0:01:33.7]} 29. Rd1
{[%clk 0:00:06.2]} 29... Qh2 {[%clk 0:01:32.5]} 30. Qg3 {[%clk 0:00:04.7]} 30...
Qxg3 {[%clk 0:01:31]} 31. fxg3 {[%clk 0:00:05.6]} 31... Re8 {[%clk 0:01:31.1]}
32. Rd3 {[%clk 0:00:06]} 32... Re6 {[%clk 0:01:30.9]} 33. Kd2 {[%clk 0:00:06.1]}
33... Kg7 {[%clk 0:01:31.3]} 34. Ke2 {[%clk 0:00:06.4]} 34... Kf6 {[%clk
0:01:31.7]} 35. a4 {[%clk 0:00:06.7]} 35... Ke5 {[%clk 0:01:32]} 36. Kf3 {[%clk
0:00:07]} 36... Rc6 {[%clk 0:01:31.9]} 37. Rd7 {[%clk 0:00:06.7]} 37... f6
{[%clk 0:01:31.5]} 38. Re7+ {[%clk 0:00:05.3]} 38... Kd6 {[%clk 0:01:31]} 39.
Rb7 {[%clk 0:00:06]} 39... Ke5 {[%clk 0:01:29]} 40. h4 {[%clk 0:00:05.9]} 40...
Rd6 {[%clk 0:01:26.7]} 41. h5 {[%clk 0:00:06]} 41... gxh5 {[%clk 0:01:24.7]} 42.
gxh5 {[%clk 0:00:06.9]} 42... f5 {[%clk 0:01:25.3]} 43. Re7+ {[%clk 0:00:05.8]}
43... Kf6 {[%clk 0:01:25.3]} 44. Rb7 {[%clk 0:00:05.8]} 44... Kg5 {[%clk
0:01:25.5]} 45. Rh7 {[%clk 0:00:04.2]} 45... Rd3 {[%clk 0:01:25.5]} 46. Rg7+
{[%clk 0:00:02.6]} 46... Kxh5 {[%clk 0:01:25]} 47. Kf4 {[%clk 0:00:02.5]} 47...
Rxb3 {[%clk 0:01:25]} 48. Kxf5 {[%clk 0:00:02.9]} 48... Rxe3 {[%clk 0:01:25]}
49. Rh7# {[%clk 0:00:03.1]} 1-0

[Event "Early-Titled-Tuesday-Blitz-February-27-2024"]
[Site "Chess.com"]
[Date "2024.02.27"]
[Round "9"]
[White "burbur555"]
[Black "AlexTruskavetsky"]
[Result "0-1"]
[WhiteElo "2569"]
[BlackElo "2743"]
[TimeControl "180+1"]
[EndTime "9:44:25 PST"]
[Termination "AlexTruskavetsky won on time"]

1. c4 {[%clk 0:03:00.9]} 1... Nf6 {[%clk 0:02:58.3]} 2. g3 {[%clk 0:03:01]} 2...
g6 {[%clk 0:02:58.6]} 3. Bg2 {[%clk 0:03:01.2]} 3... Bg7 {[%clk 0:02:59.5]} 4.
d4 {[%clk 0:03:01.2]} 4... O-O {[%clk 0:03:00.2]} 5. e4 {[%clk 0:03:00.9]} 5...
d6 {[%clk 0:03:00.7]} 6. Ne2 {[%clk 0:02:59]} 6... Nbd7 {[%clk 0:03:01]} 7. O-O
{[%clk 0:02:57.7]} 7... e5 {[%clk 0:03:01.4]} 8. Nbc3 {[%clk 0:02:56.7]} 8... h6
{[%clk 0:03:00.4]} 9. h3 {[%clk 0:02:56]} 9... c6 {[%clk 0:03:00.1]} 10. Be3
{[%clk 0:02:55.2]} 10... Qe7 {[%clk 0:03:00]} 11. Qd2 {[%clk 0:02:51.6]} 11...
Kh7 {[%clk 0:02:59.8]} 12. Rad1 {[%clk 0:02:38.9]} 12... Ne8 {[%clk 0:02:55.6]}
13. b3 {[%clk 0:02:12.3]} 13... f5 {[%clk 0:02:54.5]} 14. dxe5 {[%clk
0:02:10.9]} 14... dxe5 {[%clk 0:02:53.7]} 15. exf5 {[%clk 0:02:09.8]} 15... gxf5
{[%clk 0:02:54.6]} 16. f4 {[%clk 0:02:07.5]} 16... e4 {[%clk 0:02:54.5]} 17. Bd4
{[%clk 0:02:03.2]} 17... Ndf6 {[%clk 0:02:54.5]} 18. Be5 {[%clk 0:02:00.6]}
18... Be6 {[%clk 0:02:51.2]} 19. Qe3 {[%clk 0:01:48.3]} 19... h5 {[%clk
0:02:45.2]} 20. Rd2 {[%clk 0:01:28.1]} 20... Nd7 {[%clk 0:02:42]} 21. Bxg7
{[%clk 0:01:26.5]} 21... Nxg7 {[%clk 0:02:42.4]} 22. g4 {[%clk 0:01:23.3]} 22...
hxg4 {[%clk 0:02:41.4]} 23. hxg4 {[%clk 0:01:22.4]} 23... Nf6 {[%clk 0:02:41.8]}
24. g5 {[%clk 0:01:05.7]} 24... Ng4 {[%clk 0:02:40.8]} 25. Qh3+ {[%clk
0:01:04.3]} 25... Kg6 {[%clk 0:02:40.2]} 26. Nxe4 {[%clk 0:00:49.8]} 26... fxe4
{[%clk 0:02:34.8]} 27. Nd4 {[%clk 0:00:34.2]} 27... Rh8 {[%clk 0:02:02.7]} 28.
Qg3 {[%clk 0:00:20.4]} 28... Qc5 {[%clk 0:01:49.6]} 29. b4 {[%clk 0:00:19.2]}
29... Qe7 {[%clk 0:01:23.4]} 30. Bxe4+ {[%clk 0:00:18]} 30... Bf5 {[%clk
0:01:23.9]} 31. Nxf5 {[%clk 0:00:16.8]} 31... Qxe4 {[%clk 0:01:18.4]} 32. Nh4+
{[%clk 0:00:14.4]} 32... Rxh4 {[%clk 0:01:17.7]} 33. Qxh4 {[%clk 0:00:14.1]}
33... Qe3+ {[%clk 0:01:18.3]} 34. Kh1 {[%clk 0:00:14.2]} 34... Nf5 {[%clk
0:01:04.1]} 35. Rd6+ {[%clk 0:00:06.2]} 35... Nxd6 {[%clk 0:01:04]} 36. Qxg4
{[%clk 0:00:05.7]} 36... Nf5 {[%clk 0:01:01.7]} 0-1

[Event "Early-Titled-Tuesday-Blitz-February-27-2024"]
[Site "Chess.com"]
[Date "2024.02.27"]
[Round "9"]
[White "LeoLV10"]
[Black "DrCeltic"]
[Result "0-1"]
[WhiteElo "2463"]
[BlackElo "2579"]
[TimeControl "180+1"]
[EndTime "9:44:27 PST"]
[Termination "DrCeltic won by resignation"]

1. e4 {[%clk 0:02:56]} 1... c5 {[%clk 0:02:49.1]} 2. Nf3 {[%clk 0:02:55.6]} 2...
e6 {[%clk 0:02:48.9]} 3. d4 {[%clk 0:02:55.7]} 3... cxd4 {[%clk 0:02:49.8]} 4.
Nxd4 {[%clk 0:02:56.6]} 4... Nf6 {[%clk 0:02:50.3]} 5. Nc3 {[%clk 0:02:56.2]}
5... d6 {[%clk 0:02:50.2]} 6. g4 {[%clk 0:02:51.8]} 6... h6 {[%clk 0:02:49.7]}
7. h4 {[%clk 0:02:50.7]} 7... Nc6 {[%clk 0:02:49.2]} 8. Rg1 {[%clk 0:02:49.5]}
8... d5 {[%clk 0:02:48.6]} 9. Bb5 {[%clk 0:02:22.6]} 9... Bd7 {[%clk 0:02:44.6]}
10. Bxc6 {[%clk 0:02:09.3]} 10... Bxc6 {[%clk 0:02:36.4]} 11. e5 {[%clk
0:02:08.8]} 11... Nd7 {[%clk 0:02:34.6]} 12. f4 {[%clk 0:02:08.9]} 12... Qxh4+
{[%clk 0:02:33.5]} 13. Kf1 {[%clk 0:02:07.6]} 13... Bc5 {[%clk 0:02:19.4]} 14.
Be3 {[%clk 0:01:38.6]} 14... f6 {[%clk 0:01:33]} 15. Qf3 {[%clk 0:01:06.4]}
15... fxe5 {[%clk 0:01:26.1]} 16. Rh1 {[%clk 0:00:49.9]} 16... Qf6 {[%clk
0:01:10.2]} 17. g5 {[%clk 0:00:50]} 17... Qf7 {[%clk 0:01:06.5]} 18. Nxc6 {[%clk
0:00:35.6]} 18... bxc6 {[%clk 0:01:01.2]} 19. Bxc5 {[%clk 0:00:26.8]} 19... Nxc5
{[%clk 0:00:59.7]} 20. Re1 {[%clk 0:00:27.7]} 20... O-O {[%clk 0:00:49.8]} 21.
Rxe5 {[%clk 0:00:20.9]} 21... Qxf4 {[%clk 0:00:43]} 22. Qxf4 {[%clk 0:00:20.5]}
22... Rxf4+ {[%clk 0:00:43.9]} 23. Ke2 {[%clk 0:00:21.2]} 23... hxg5 {[%clk
0:00:34.5]} 24. Rxg5 {[%clk 0:00:21.2]} 24... Raf8 {[%clk 0:00:34.4]} 25. Rh2
{[%clk 0:00:21.2]} 25... Nd7 {[%clk 0:00:29.8]} 26. Rhg2 {[%clk 0:00:21]} 26...
R8f7 {[%clk 0:00:29.8]} 27. Rg6 {[%clk 0:00:21.5]} 27... R4f6 {[%clk 0:00:29.4]}
28. R6g4 {[%clk 0:00:20.2]} 28... e5 {[%clk 0:00:29.1]} 29. Ra4 {[%clk
0:00:20.2]} 29... Nc5 {[%clk 0:00:26.7]} 30. Ra5 {[%clk 0:00:19.4]} 30... Ne6
{[%clk 0:00:26]} 31. Ra6 {[%clk 0:00:18.8]} 31... Nf4+ {[%clk 0:00:25.8]} 0-1

[Event "Early-Titled-Tuesday-Blitz-February-27-2024"]
[Site "Chess.com"]
[Date "2024.02.27"]
[Round "9"]
[White "jamengrand"]
[Black "azikom"]
[Result "1-0"]
[WhiteElo "2423"]
[BlackElo "2611"]
[TimeControl "180+1"]
[EndTime "9:44:32 PST"]
[Termination "jamengrand won on time"]

1. e4 {[%clk 0:03:00.9]} 1... c6 {[%clk 0:03:00.9]} 2. Nf3 {[%clk 0:03:00.7]}
2... d5 {[%clk 0:03:01.8]} 3. exd5 {[%clk 0:03:01.5]} 3... cxd5 {[%clk
0:03:01.7]} 4. Ne5 {[%clk 0:03:01.8]} 4... Nc6 {[%clk 0:03:00.4]} 5. d4 {[%clk
0:03:02.1]} 5... Nxe5 {[%clk 0:02:59.2]} 6. dxe5 {[%clk 0:03:01.6]} 6... e6
{[%clk 0:02:59.3]} 7. Bd3 {[%clk 0:03:01.5]} 7... Ne7 {[%clk 0:02:59.4]} 8. Nd2
{[%clk 0:03:01.6]} 8... Bd7 {[%clk 0:02:57.6]} 9. Nf3 {[%clk 0:03:01.4]} 9...
Nc6 {[%clk 0:02:52.4]} 10. O-O {[%clk 0:03:01.2]} 10... Qb6 {[%clk 0:02:48.8]}
11. c3 {[%clk 0:02:51.8]} 11... h6 {[%clk 0:02:47.1]} 12. b4 {[%clk 0:02:48.5]}
12... a5 {[%clk 0:02:46.3]} 13. b5 {[%clk 0:02:48.2]} 13... Na7 {[%clk
0:02:24.8]} 14. a4 {[%clk 0:02:39.4]} 14... Bc5 {[%clk 0:02:19.6]} 15. Qe2
{[%clk 0:02:34.2]} 15... Nc8 {[%clk 0:02:18.3]} 16. Nd4 {[%clk 0:02:27.3]} 16...
Bxd4 {[%clk 0:02:16.5]} 17. cxd4 {[%clk 0:02:27.2]} 17... Qxd4 {[%clk
0:02:16.9]} 18. Ba3 {[%clk 0:02:27.4]} 18... Qxa4 {[%clk 0:02:09.5]} 19. Qe3
{[%clk 0:02:03.1]} 19... Qh4 {[%clk 0:01:48.8]} 20. Rac1 {[%clk 0:01:49.7]}
20... Ne7 {[%clk 0:01:34.6]} 21. g3 {[%clk 0:01:44]} 21... d4 {[%clk 0:00:40.8]}
22. Qf3 {[%clk 0:01:33.4]} 22... Qg5 {[%clk 0:00:40.5]} 23. Qxb7 {[%clk
0:01:27.1]} 23... Rd8 {[%clk 0:00:40.6]} 24. f4 {[%clk 0:01:25]} 24... Qh5
{[%clk 0:00:31.8]} 25. Bxe7 {[%clk 0:01:06]} 25... Kxe7 {[%clk 0:00:31.2]} 26.
Qc7 {[%clk 0:01:03.4]} 26... f5 {[%clk 0:00:17]} 27. Qd6+ {[%clk 0:01:01.9]}
27... Ke8 {[%clk 0:00:16.8]} 28. Rc7 {[%clk 0:01:00.9]} 28... Qf7 {[%clk
0:00:17.3]} 29. b6 {[%clk 0:00:58.1]} 29... Qe7 {[%clk 0:00:17.4]} 30. Qxd4
{[%clk 0:00:39.9]} 30... Kf7 {[%clk 0:00:07.1]} 31. Bb5 {[%clk 0:00:38.4]} 1-0

[Event "Early-Titled-Tuesday-Blitz-February-27-2024"]
[Site "Chess.com"]
[Date "2024.02.27"]
[Round "9"]
[White "Anton_Demchenko"]
[Black "bulletteemo"]
[Result "0-1"]
[WhiteElo "2860"]
[BlackElo "2580"]
[TimeControl "180+1"]
[EndTime "9:44:33 PST"]
[Termination "bulletteemo won by checkmate"]

1. e4 {[%clk 0:03:00.9]} 1... c5 {[%clk 0:02:58.5]} 2. Nf3 {[%clk 0:03:00.5]}
2... d6 {[%clk 0:02:58.7]} 3. d4 {[%clk 0:03:00.7]} 3... cxd4 {[%clk 0:02:59.2]}
4. Qxd4 {[%clk 0:03:01.3]} 4... Nf6 {[%clk 0:02:58.5]} 5. Bg5 {[%clk 0:03:00.7]}
5... e5 {[%clk 0:02:54.6]} 6. Qe3 {[%clk 0:02:46.5]} 6... Nc6 {[%clk 0:02:48.9]}
7. c4 {[%clk 0:02:40.3]} 7... Be6 {[%clk 0:02:46.2]} 8. Nc3 {[%clk 0:02:40]}
8... Be7 {[%clk 0:02:43.9]} 9. Qd2 {[%clk 0:02:32.4]} 9... O-O {[%clk
0:02:32.1]} 10. h3 {[%clk 0:02:29.7]} 10... a6 {[%clk 0:02:25.4]} 11. Be2 {[%clk
0:02:29.1]} 11... Qa5 {[%clk 0:02:19]} 12. O-O {[%clk 0:02:21.7]} 12... Rfd8
{[%clk 0:02:01.2]} 13. Rfd1 {[%clk 0:02:18.8]} 13... Kf8 {[%clk 0:01:55.1]} 14.
a3 {[%clk 0:01:55.3]} 14... Nd4 {[%clk 0:01:40.5]} 15. b4 {[%clk 0:01:45.4]}
15... Nxe2+ {[%clk 0:00:57.8]} 16. Qxe2 {[%clk 0:01:45.2]} 16... Qc7 {[%clk
0:00:58]} 17. Bxf6 {[%clk 0:01:45]} 17... Bxf6 {[%clk 0:00:57.4]} 18. Nd5 {[%clk
0:01:45.1]} 18... Bxd5 {[%clk 0:00:54.3]} 19. Rxd5 {[%clk 0:01:46]} 19... Rac8
{[%clk 0:00:53.5]} 20. Rc1 {[%clk 0:01:44.7]} 20... Be7 {[%clk 0:00:45.8]} 21.
a4 {[%clk 0:01:31.8]} 21... Qb6 {[%clk 0:00:37.9]} 22. Qb2 {[%clk 0:01:23.7]}
22... Rc6 {[%clk 0:00:21.4]} 23. b5 {[%clk 0:00:37.1]} 23... Rc5 {[%clk
0:00:18.7]} 24. Rxc5 {[%clk 0:00:32.4]} 24... Qxc5 {[%clk 0:00:19.1]} 25. Qb3
{[%clk 0:00:26.6]} 25... Rc8 {[%clk 0:00:18.8]} 26. Rc2 {[%clk 0:00:22.8]} 26...
Bd8 {[%clk 0:00:17.7]} 27. g3 {[%clk 0:00:21.6]} 27... Bb6 {[%clk 0:00:16.5]}
28. Kg2 {[%clk 0:00:22.2]} 28... axb5 {[%clk 0:00:14.4]} 29. axb5 {[%clk
0:00:22.4]} 29... Ra8 {[%clk 0:00:14]} 30. Ra2 {[%clk 0:00:22.3]} 30... Rc8
{[%clk 0:00:14.2]} 31. Nd2 {[%clk 0:00:19.3]} 31... Qxf2+ {[%clk 0:00:13.7]} 32.
Kh1 {[%clk 0:00:18.7]} 32... Qg1# {[%clk 0:00:13.8]} 0-1

[Event "Early-Titled-Tuesday-Blitz-February-27-2024"]
[Site "Chess.com"]
[Date "2024.02.27"]
[Round "9"]
[White "Ishowmoves57"]
[Black "agvania123"]
[Result "1/2-1/2"]
[WhiteElo "2179"]
[BlackElo "2394"]
[TimeControl "180+1"]
[EndTime "9:44:33 PST"]
[Termination "Game drawn by stalemate"]

1. e4 {[%clk 0:02:59.3]} 1... d5 {[%clk 0:03:00.3]} 2. exd5 {[%clk 0:02:56.9]}
2... Qxd5 {[%clk 0:03:01.2]} 3. Nc3 {[%clk 0:02:54.2]} 3... Qd8 {[%clk
0:03:00.7]} 4. d4 {[%clk 0:02:54.8]} 4... Nf6 {[%clk 0:03:00.9]} 5. Bc4 {[%clk
0:02:54.9]} 5... a6 {[%clk 0:03:00.7]} 6. Nf3 {[%clk 0:02:53.5]} 6... b5 {[%clk
0:03:01.2]} 7. Bb3 {[%clk 0:02:51.1]} 7... c5 {[%clk 0:03:01.5]} 8. dxc5 {[%clk
0:02:50.4]} 8... Qxd1+ {[%clk 0:03:01.5]} 9. Nxd1 {[%clk 0:02:50.4]} 9... e6
{[%clk 0:03:01.7]} 10. Be3 {[%clk 0:02:45.8]} 10... Nfd7 {[%clk 0:03:02.2]} 11.
Nc3 {[%clk 0:02:39]} 11... Bxc5 {[%clk 0:03:00.5]} 12. Bxc5 {[%clk 0:02:37.8]}
12... Nxc5 {[%clk 0:03:01.4]} 13. O-O-O {[%clk 0:02:37.7]} 13... Bb7 {[%clk
0:02:40]} 14. Ne5 {[%clk 0:02:11.9]} 14... Nc6 {[%clk 0:01:52.2]} 15. Nxc6
{[%clk 0:02:08]} 15... Bxc6 {[%clk 0:01:53.1]} 16. f3 {[%clk 0:02:07.6]} 16...
Nxb3+ {[%clk 0:01:53.1]} 17. axb3 {[%clk 0:02:07.6]} 17... Ke7 {[%clk
0:01:53.6]} 18. Rd2 {[%clk 0:02:06.3]} 18... Rad8 {[%clk 0:01:54]} 19. Rhd1
{[%clk 0:02:06.2]} 19... Rxd2 {[%clk 0:01:54]} 20. Rxd2 {[%clk 0:02:06.9]} 20...
Rd8 {[%clk 0:01:54.2]} 21. Rxd8 {[%clk 0:02:07]} 21... Kxd8 {[%clk 0:01:55.1]}
22. Kd2 {[%clk 0:02:07.1]} 22... Ke7 {[%clk 0:01:55.2]} 23. Ke3 {[%clk
0:02:07.3]} 23... Kd6 {[%clk 0:01:55.8]} 24. Ne4+ {[%clk 0:02:06.8]} 24... Bxe4
{[%clk 0:01:40.9]} 25. Kxe4 {[%clk 0:02:07]} 25... f5+ {[%clk 0:01:34.1]} 26.
Ke3 {[%clk 0:02:03.2]} 26... e5 {[%clk 0:01:31.7]} 27. b4 {[%clk 0:02:02.3]}
27... Kd5 {[%clk 0:01:31.3]} 28. b3 {[%clk 0:01:59.2]} 28... e4 {[%clk
0:01:13.8]} 29. fxe4+ {[%clk 0:01:51.4]} 29... fxe4 {[%clk 0:01:14.7]} 30. c3
{[%clk 0:01:46.8]} 30... h5 {[%clk 0:00:55]} 31. h4 {[%clk 0:01:44.9]} 31... g6
{[%clk 0:00:52.8]} 32. g3 {[%clk 0:01:44.7]} 32... Ke5 {[%clk 0:00:44.8]} 33. c4
{[%clk 0:01:44.8]} 33... Kf5 {[%clk 0:00:44.7]} 34. c5 {[%clk 0:01:44.1]} 34...
Ke5 {[%clk 0:00:44.6]} 35. c6 {[%clk 0:01:38.3]} 35... Kd6 {[%clk 0:00:44.4]}
36. Kxe4 {[%clk 0:01:38.4]} 36... Kxc6 {[%clk 0:00:44.7]} 37. Ke5 {[%clk
0:01:38.9]} 37... Kb6 {[%clk 0:00:25.5]} 38. Kf6 {[%clk 0:01:14.8]} 38... a5
{[%clk 0:00:25.6]} 39. bxa5+ {[%clk 0:01:14.9]} 39... Kxa5 {[%clk 0:00:26.5]}
40. Kxg6 {[%clk 0:01:15.4]} 40... Kb4 {[%clk 0:00:27.4]} 41. Kxh5 {[%clk
0:01:15.2]} 41... Kxb3 {[%clk 0:00:28.3]} 42. g4 {[%clk 0:01:15.2]} 42... Kc3
{[%clk 0:00:16.4]} 43. g5 {[%clk 0:01:15.4]} 43... b4 {[%clk 0:00:17.3]} 44. g6
{[%clk 0:01:16]} 44... b3 {[%clk 0:00:18.2]} 45. g7 {[%clk 0:01:16.3]} 45... b2
{[%clk 0:00:19.1]} 46. g8=Q {[%clk 0:01:16.7]} 46... b1=Q {[%clk 0:00:20]} 47.
Qg3+ {[%clk 0:01:14.8]} 47... Kd4 {[%clk 0:00:20.2]} 48. Qg7+ {[%clk 0:01:14.4]}
48... Kd5 {[%clk 0:00:19.5]} 49. Qg5+ {[%clk 0:01:10.5]} 49... Kd4 {[%clk
0:00:19.7]} 50. Qf4+ {[%clk 0:01:09.2]} 50... Kd5 {[%clk 0:00:19.7]} 51. Kg5
{[%clk 0:01:08.3]} 51... Qg1+ {[%clk 0:00:18.7]} 52. Qg4 {[%clk 0:01:08.1]}
52... Qxg4+ {[%clk 0:00:16.7]} 53. Kxg4 {[%clk 0:01:08]} 53... Ke6 {[%clk
0:00:17.6]} 54. Kg5 {[%clk 0:01:08.7]} 54... Kf7 {[%clk 0:00:18.5]} 55. Kh6
{[%clk 0:01:09.3]} 55... Kg8 {[%clk 0:00:19.4]} 56. Kg6 {[%clk 0:01:09.9]} 56...
Kh8 {[%clk 0:00:20.3]} 57. Kh6 {[%clk 0:01:10.5]} 57... Kg8 {[%clk 0:00:21.2]}
58. h5 {[%clk 0:01:11]} 58... Kh8 {[%clk 0:00:22.1]} 59. Kg6 {[%clk 0:01:11.8]}
59... Kg8 {[%clk 0:00:23]} 60. h6 {[%clk 0:01:12.6]} 60... Kh8 {[%clk
0:00:23.9]} 61. h7 {[%clk 0:01:13.5]} 1/2-1/2

[Event "Early-Titled-Tuesday-Blitz-February-27-2024"]
[Site "Chess.com"]
[Date "2024.02.27"]
[Round "9"]
[White "MyDream003"]
[Black "Beca95"]
[Result "0-1"]
[WhiteElo "2727"]
[BlackElo "2914"]
[TimeControl "180+1"]
[EndTime "9:44:34 PST"]
[Termination "Beca95 won on time"]

1. e4 {[%clk 0:03:00.9]} 1... e5 {[%clk 0:02:47.4]} 2. Nf3 {[%clk 0:03:01]} 2...
Nc6 {[%clk 0:02:47.7]} 3. Bb5 {[%clk 0:03:00.6]} 3... Nf6 {[%clk 0:02:48.1]} 4.
d3 {[%clk 0:02:47.6]} 4... Bc5 {[%clk 0:02:36.5]} 5. c3 {[%clk 0:02:47.9]} 5...
O-O {[%clk 0:02:35.9]} 6. O-O {[%clk 0:02:47.5]} 6... Re8 {[%clk 0:02:35.8]} 7.
Re1 {[%clk 0:02:42.9]} 7... a6 {[%clk 0:02:35.3]} 8. Ba4 {[%clk 0:02:43]} 8...
b5 {[%clk 0:02:32.5]} 9. Bb3 {[%clk 0:02:35.3]} 9... d6 {[%clk 0:02:32.4]} 10.
h3 {[%clk 0:02:35]} 10... h6 {[%clk 0:02:32.4]} 11. Nbd2 {[%clk 0:02:27.9]}
11... Bb6 {[%clk 0:02:32.8]} 12. a4 {[%clk 0:02:23.4]} 12... Rb8 {[%clk
0:02:32.1]} 13. axb5 {[%clk 0:02:23.3]} 13... axb5 {[%clk 0:02:32.1]} 14. Nf1
{[%clk 0:02:23.1]} 14... Be6 {[%clk 0:02:31.9]} 15. Bxe6 {[%clk 0:02:16.9]}
15... Rxe6 {[%clk 0:02:31]} 16. Be3 {[%clk 0:02:14.2]} 16... d5 {[%clk
0:02:26.3]} 17. Bxb6 {[%clk 0:02:04.1]} 17... Rxb6 {[%clk 0:02:27.2]} 18. Qb3
{[%clk 0:02:01.3]} 18... b4 {[%clk 0:02:25.8]} 19. Qa4 {[%clk 0:01:51.3]} 19...
d4 {[%clk 0:02:19.5]} 20. cxd4 {[%clk 0:00:51.6]} 20... Nxd4 {[%clk 0:02:19.3]}
21. Nxd4 {[%clk 0:00:47.9]} 21... Qxd4 {[%clk 0:02:20.2]} 22. Qb3 {[%clk
0:00:48.4]} 22... Nd7 {[%clk 0:02:09.6]} 23. Ra8+ {[%clk 0:00:47.8]} 23... Kh7
{[%clk 0:02:09.3]} 24. Rd8 {[%clk 0:00:47.6]} 24... Nc5 {[%clk 0:02:06.7]} 25.
Rxd4 {[%clk 0:00:45.1]} 25... Nxb3 {[%clk 0:02:06.6]} 26. Rd7 {[%clk 0:00:45.4]}
26... Kg6 {[%clk 0:01:57.6]} 27. Rxc7 {[%clk 0:00:45.2]} 27... Rec6 {[%clk
0:01:57.6]} 28. Rxc6+ {[%clk 0:00:33.6]} 28... Rxc6 {[%clk 0:01:58.5]} 29. Ne3
{[%clk 0:00:33.9]} 29... Nd4 {[%clk 0:01:40.9]} 30. Rd1 {[%clk 0:00:31.5]} 30...
Ra6 {[%clk 0:01:38]} 31. Kf1 {[%clk 0:00:30.8]} 31... f6 {[%clk 0:01:37.5]} 32.
Nc4 {[%clk 0:00:30.6]} 32... b3 {[%clk 0:01:35]} 33. Ke1 {[%clk 0:00:30.4]}
33... Kg5 {[%clk 0:01:31.8]} 34. g3 {[%clk 0:00:26.3]} 34... h5 {[%clk
0:01:31.9]} 35. Kd2 {[%clk 0:00:23.4]} 35... h4 {[%clk 0:01:31.1]} 36. Ke3
{[%clk 0:00:22.2]} 36... hxg3 {[%clk 0:01:31.5]} 37. fxg3 {[%clk 0:00:23.1]}
37... Ra8 {[%clk 0:01:31.1]} 38. Rh1 {[%clk 0:00:19]} 38... Rh8 {[%clk
0:01:29.3]} 39. Nd6 {[%clk 0:00:19.6]} 39... Kg6 {[%clk 0:01:26.4]} 40. h4
{[%clk 0:00:18.4]} 40... Kh5 {[%clk 0:01:21.1]} 41. Nf5 {[%clk 0:00:09]} 41...
Nxf5+ {[%clk 0:01:20.4]} 42. exf5 {[%clk 0:00:09.9]} 42... Kg4 {[%clk
0:01:20.9]} 43. d4 {[%clk 0:00:08.5]} 43... exd4+ {[%clk 0:01:15.9]} 44. Kxd4
{[%clk 0:00:09.4]} 44... Kxf5 {[%clk 0:01:15.5]} 45. Kc3 {[%clk 0:00:08.1]}
45... Rb8 {[%clk 0:01:14.2]} 46. Rd1 {[%clk 0:00:01]} 46... Ke4 {[%clk
0:01:10.8]} 0-1

[Event "Early-Titled-Tuesday-Blitz-February-27-2024"]
[Site "Chess.com"]
[Date "2024.02.27"]
[Round "9"]
[White "Zheenbekov86"]
[Black "thebeast2900"]
[Result "1-0"]
[WhiteElo "2423"]
[BlackElo "2304"]
[TimeControl "180+1"]
[EndTime "9:44:34 PST"]
[Termination "Zheenbekov86 won by resignation"]

1. Nf3 {[%clk 0:03:00.9]} 1... d5 {[%clk 0:02:50.7]} 2. g3 {[%clk 0:03:00.4]}
2... Nf6 {[%clk 0:02:50.5]} 3. Bg2 {[%clk 0:03:00.4]} 3... c5 {[%clk 0:02:49.2]}
4. O-O {[%clk 0:03:00.3]} 4... Nc6 {[%clk 0:02:48.2]} 5. d3 {[%clk 0:03:00.3]}
5... e6 {[%clk 0:02:48.1]} 6. Re1 {[%clk 0:02:59.2]} 6... Be7 {[%clk 0:02:45.3]}
7. Nbd2 {[%clk 0:02:59]} 7... Qc7 {[%clk 0:02:45.2]} 8. e4 {[%clk 0:02:58.5]}
8... b6 {[%clk 0:02:41.9]} 9. h3 {[%clk 0:02:54.9]} 9... Bb7 {[%clk 0:02:40.4]}
10. c3 {[%clk 0:02:54.5]} 10... h6 {[%clk 0:02:36.7]} 11. h4 {[%clk 0:02:53.4]}
11... O-O-O {[%clk 0:02:33]} 12. Qe2 {[%clk 0:02:44.2]} 12... Rhg8 {[%clk
0:02:00.2]} 13. a4 {[%clk 0:02:40.6]} 13... g5 {[%clk 0:01:57.4]} 14. hxg5
{[%clk 0:02:34.6]} 14... hxg5 {[%clk 0:01:56.9]} 15. Nb3 {[%clk 0:02:11.3]}
15... Ba6 {[%clk 0:01:42.9]} 16. e5 {[%clk 0:02:06.4]} 16... Nd7 {[%clk
0:01:38.8]} 17. a5 {[%clk 0:01:57.2]} 17... c4 {[%clk 0:01:24.9]} 18. axb6
{[%clk 0:01:41.8]} 18... Qxb6 {[%clk 0:01:25.8]} 19. Nbd4 {[%clk 0:01:31.7]}
19... cxd3 {[%clk 0:01:22.5]} 20. Qd1 {[%clk 0:01:31.6]} 20... Bc5 {[%clk
0:01:04.8]} 21. Be3 {[%clk 0:01:30.7]} 21... g4 {[%clk 0:01:02]} 22. b4 {[%clk
0:00:54.3]} 22... Bxd4 {[%clk 0:00:34.3]} 23. Nxd4 {[%clk 0:00:53.3]} 23... Nxd4
{[%clk 0:00:29.7]} 24. Bxd4 {[%clk 0:00:53.1]} 24... Qb7 {[%clk 0:00:24.9]} 25.
Bf1 {[%clk 0:00:52.8]} 25... Nb6 {[%clk 0:00:22.5]} 26. Bxd3 {[%clk 0:00:47.5]}
26... Bxd3 {[%clk 0:00:20.8]} 27. Qxd3 {[%clk 0:00:46.4]} 27... Kb8 {[%clk
0:00:20.8]} 28. Re2 {[%clk 0:00:43.4]} 28... Rg7 {[%clk 0:00:18.9]} 29. Rea2
{[%clk 0:00:42.9]} 29... Rh8 {[%clk 0:00:07.6]} 30. Rxa7 {[%clk 0:00:41.9]}
30... Qxa7 {[%clk 0:00:07.8]} 31. Rxa7 {[%clk 0:00:41.6]} 31... Kxa7 {[%clk
0:00:08.7]} 32. Qb5 {[%clk 0:00:41.4]} 32... Rb8 {[%clk 0:00:06.8]} 33. Qa5+
{[%clk 0:00:41.2]} 1-0